bitfinex/quotes_BTCUSD_20260110
["timestamp","ask_amount","ask_price","bid_price","bid_amount"]
[1768079747371,5.446e-05,90532.0,90520.0,0.01104728]
[1768079747527,0.03315017,90527.0,90519.0,0.0110474]
[1768079747726,0.03315017,90527.0,90520.0,0.01104728]
[1768079747936,0.03315017,90527.0,90519.0,0.0110474]
[1768079750084,0.03315017,90527.0,90520.0,0.01104728]
[1768079750487,0.03315017,90527.0,90519.0,0.0110474]
[1768079750889,0.03315017,90527.0,90520.0,0.01104728]
[1768079751295,0.03315017,90527.0,90519.0,0.0110474]
[1768079752075,0.03315017,90527.0,90520.0,0.01104728]
[1768079752311,0.03315017,90527.0,90519.0,0.0110474]
[1768079752537,0.03315017,90527.0,90520.0,0.01104728]
[1768079753906,0.03315017,90527.0,90519.0,0.0110474]
[1768079754128,0.03315017,90527.0,90520.0,0.01104728]
[1768079754874,0.03315017,90527.0,90520.0,0.01089202]
[1768079755073,0.04810807,90526.0,90519.0,0.0110474]
[1768079755213,0.03315017,90527.0,90520.0,0.01104728]
[1768079756616,0.03315017,90527.0,90519.0,0.0110474]
[1768079758251,0.03315017,90527.0,90520.0,0.01104728]
[1768079758456,0.03315017,90527.0,90519.0,0.0110474]
[1768079759218,0.03315017,90527.0,90520.0,0.01104728]
[1768079759959,0.03315017,90527.0,90519.0,0.0110474]
[1768079760328,0.03315017,90527.0,90518.0,0.01104752]
[1768079760736,0.03315017,90527.0,90519.0,0.0110474]
[1768079762468,0.03315017,90527.0,90518.0,0.01104752]
[1768079763281,0.03315017,90527.0,90517.0,0.01104764]
[1768079763609,0.03315017,90527.0,90518.0,0.01104752]
[1768079763848,0.03315017,90527.0,90517.0,0.01104764]
[1768079764576,0.03315017,90527.0,90518.0,0.01104752]
[1768079764803,0.03315017,90527.0,90517.0,0.01104764]
[1768079765601,0.03315017,90527.0,90518.0,0.01104752]
[1768079767117,0.04864108,90526.0,90518.0,0.01104752]
[1768079767317,0.04864108,90526.0,90519.0,0.0110474]
[1768079768029,0.05968872,90526.0,90519.0,0.0110474]
[1768079768281,0.05968872,90526.0,90520.0,0.01104728]
[1768079768448,0.04864108,90525.0,90523.0,0.01104691]
[1768079768630,0.04864108,90525.0,90523.0,0.01089163]
[1768079769303,0.04864108,90525.0,90523.0,0.01058109]
[1768079769714,0.01104764,90526.0,90523.0,0.01058109]
[1768079771361,0.01104764,90526.0,90522.0,0.01104703]
[1768079771845,0.01104764,90526.0,90521.0,0.01104716]
[1768079772060,0.01104764,90526.0,90517.0,0.01104764]
[1768079772259,0.01104764,90526.0,90519.0,0.0110474]
[1768079773187,0.01104764,90526.0,90520.0,0.01104728]
[1768079774485,0.01104764,90526.0,90521.0,0.01104716]
[1768079775291,0.01104764,90526.0,90522.0,0.01104703]
[1768079775727,0.01104764,90526.0,90523.0,0.01104691]
[1768079777371,0.01104764,90526.0,90523.0,0.06628141]
[1768079778446,0.01104764,90526.0,90524.0,0.05523397]
[1768079779101,0.04864108,90531.0,90526.0,0.01104655]
[1768079779314,0.03315017,90530.0,90526.0,0.00642658]
[1768079779519,0.03315017,90530.0,90527.0,0.01104642]
[1768079780313,0.03306008,90530.0,90527.0,0.01104642]
[1768079782437,0.03306008,90530.0,90527.0,0.06627855]
[1768079783247,0.03306008,90530.0,90527.0,0.01104642]
[1768079784615,0.03306008,90530.0,90525.0,0.01104667]
[1768079785031,0.03306008,90530.0,90526.0,0.01104655]
[1768079785839,0.03306008,90530.0,90525.0,0.01104667]
[1768079786199,0.03306008,90530.0,90524.0,0.01104679]
[1768079786594,0.03306008,90530.0,90525.0,0.01104667]
[1768079786768,0.03296999,90530.0,90525.0,0.01104667]
[1768079787447,0.03296999,90530.0,90524.0,0.01104679]
[1768079789439,0.03296999,90530.0,90526.0,0.01104655]
[1768079790300,0.03296999,90530.0,90527.0,0.01104642]
[1768079790440,5.446e-05,90532.0,90527.0,0.01104642]
[1768079790665,0.03296999,90531.0,90526.0,0.01104655]
[1768079790903,0.03296999,90531.0,90527.0,0.01104642]
[1768079791650,0.03296999,90531.0,90526.0,0.01104655]
[1768079793744,0.03296999,90531.0,90525.0,0.01104667]
[1768079793948,0.03296999,90531.0,90526.0,0.01104655]
[1768079794181,0.04749012,90530.0,90526.0,0.01104655]
[1768079794602,0.04848912,90526.0,90523.0,0.01104691]
[1768079794750,0.000999,90526.0,90523.0,0.01104691]
[1768079794959,0.000999,90526.0,90522.0,0.01104703]
[1768079795731,0.000999,90526.0,90520.0,0.01104728]
[1768079796105,0.000999,90526.0,90519.0,0.0110474]
[1768079796301,0.000999,90526.0,90516.0,0.04837436]
[1768079796508,0.000999,90526.0,90514.0,0.08840698]
[1768079796509,0.04749012,90525.0,90508.0,0.01104874]
[1768079796697,0.2932199,90520.0,90509.0,0.01104862]
[1768079796860,0.04749012,90519.0,90510.0,0.0110485]
[1768079797274,0.04749012,90519.0,90505.0,0.01104911]
[1768079797472,0.000999,90508.0,90505.0,0.01104911]
[1768079797872,0.04749012,90512.0,90506.0,0.01104899]
[1768079798291,0.04749012,90512.0,90507.0,0.01104886]
[1768079798893,0.04749012,90512.0,90508.0,0.01104874]
[1768079799115,0.04749012,90512.0,90509.0,0.01104862]
[1768079801041,0.04749012,90519.0,90511.0,0.01104838]
[1768079801415,0.04749012,90519.0,90512.0,0.01104825]
[1768079801844,0.04749012,90519.0,90513.0,0.01104813]
[1768079802054,0.01104923,90520.0,90514.0,0.01104801]
[1768079802255,0.01104923,90520.0,90513.0,0.01104813]
[1768079802597,0.01104923,90520.0,90514.0,0.01104801]
[1768079802799,0.01104923,90520.0,90515.0,0.01104789]
[1768079803008,0.01104923,90520.0,90514.0,0.01104801]
[1768079803172,0.01095914,90520.0,90514.0,0.01104801]
[1768079803772,0.01095914,90520.0,90512.0,0.01104825]
[1768079803997,0.02212,90523.0,90512.0,0.01104825]
[1768079804385,0.02212,90523.0,90515.0,0.01104789]
[1768079805886,0.06961012,90523.0,90515.0,0.01104789]
[1768079807063,0.04749012,90522.0,90515.0,0.01104789]
[1768079807469,0.04749012,90522.0,90513.0,0.01104813]
[1768079807674,0.04749012,90522.0,90512.0,0.01104825]
[1768079807885,0.04749012,90522.0,90513.0,0.01104813]
[1768079808283,0.04749012,90522.0,90512.0,0.01104825]
[1768079808495,0.04749012,90522.0,90511.0,0.01104838]
[1768079808496,0.05853874,90522.0,90511.0,0.01104838]
[1768079808904,0.05853874,90522.0,90510.0,0.0110485]
[1768079809101,0.05853874,90522.0,90511.0,0.01104838]
[1768079809391,0.05853874,90522.0,90512.0,0.01104825]
[1768079809566,0.05853874,90522.0,90513.0,0.01104813]
[1768079810321,0.05853874,90522.0,90512.0,0.01104825]
[1768079810550,0.05853874,90522.0,90513.0,0.01104813]
[1768079811292,0.05853874,90522.0,90512.0,0.01104825]
[1768079811673,0.05853874,90522.0,90513.0,0.01104813]
[1768079812856,0.05853874,90522.0,90512.0,0.01104825]
[1768079813770,0.05853874,90522.0,90513.0,0.01104813]
[1768079814990,0.05853874,90522.0,90512.0,0.01104825]
[1768079815402,0.05853874,90522.0,90511.0,0.01104838]
[1768079815601,0.05853874,90522.0,90512.0,0.01104825]
[1768079815834,0.05853874,90522.0,90511.0,0.01104838]
[1768079816554,0.05853874,90522.0,90512.0,0.01104825]
[1768079816755,0.05853874,90522.0,90511.0,0.01104838]
[1768079817205,0.05853874,90522.0,90510.0,0.0110485]
[1768079817436,0.05853874,90522.0,90512.0,0.01104825]
[1768079817669,0.05853874,90522.0,90511.0,0.01104838]
[1768079817915,0.05853874,90522.0,90509.0,0.01104862]
[1768079818216,0.05853874,90522.0,90510.0,0.0110485]
[1768079818433,0.05853874,90522.0,90511.0,0.01104838]
[1768079818831,0.05853874,90522.0,90510.0,0.0110485]
[1768079818832,0.05853874,90522.0,90509.0,0.01104862]
[1768079819238,0.05853874,90522.0,90510.0,0.0110485]
[1768079821118,0.05853874,90522.0,90511.0,0.01104838]
[1768079822989,0.05853874,90522.0,90512.0,0.01104825]
[1768079823222,0.05853874,90522.0,90511.0,0.01104838]
[1768079823434,0.05853874,90522.0,90512.0,0.01104825]
[1768079825856,0.05853874,90522.0,90513.0,0.01104813]
[1768079826847,0.05853874,90522.0,90514.0,0.01104801]
[1768079827056,0.05853874,90522.0,90514.0,0.00771441]
[1768079827260,0.05853874,90522.0,90514.0,0.00691934]
[1768079827971,0.01104862,90522.0,90514.0,0.00691934]
[1768079829236,0.01104862,90522.0,90514.0,0.01104801]
[1768079830253,0.01104862,90522.0,90513.0,0.01104813]
[1768079830473,0.01104862,90522.0,90514.0,0.01104801]
[1768079830849,0.02212,90521.0,90514.0,0.01104801]
[1768079833089,0.02212,90521.0,90513.0,0.01104813]
[1768079836185,0.02212,90521.0,90514.0,0.01104801]
[1768079836642,0.02212,90521.0,90513.0,0.01104813]
[1768079837141,0.06779785,90521.0,90513.0,0.01104813]
[1768079837337,0.04567785,90520.0,90513.0,0.01104813]
[1768079837908,0.04567785,90520.0,90514.0,0.01104801]
[1768079838108,0.04567785,90520.0,90514.0,0.01100307]
[1768079838440,0.04567785,90520.0,90515.0,0.01104789]
[1768079838646,0.04567785,90520.0,90514.0,0.01104801]
[1768079838971,0.02212,90521.0,90514.0,0.01104801]
[1768079841286,0.02212,90521.0,90515.0,0.01104789]
[1768079842386,0.02212,90521.0,90514.0,0.01104801]
[1768079843255,0.02212,90521.0,90513.0,0.01104813]
[1768079843623,0.02212,90521.0,90512.0,0.01104825]
[1768079843837,0.02212,90521.0,90513.0,0.01104813]
[1768079844052,0.02212,90521.0,90514.0,0.01104801]
[1768079844257,0.02212,90521.0,90513.0,0.01104813]
[1768079844458,0.02212,90521.0,90512.0,0.01104825]
[1768079845494,0.02212,90521.0,90513.0,0.01104813]
[1768079845623,0.02212,90521.0,90513.0,0.00883101]
[1768079845817,0.02212,90521.0,90512.0,0.01104825]
[1768079848972,0.02212,90521.0,90513.0,0.01104813]
[1768079849287,0.02212,90521.0,90512.0,0.01104825]
[1768079849642,0.02212,90521.0,90512.0,0.01100331]
[1768079849919,0.02212,90521.0,90513.0,0.01104813]
[1768079850446,0.02212,90521.0,90512.0,0.01100331]
[1768079850734,0.02212,90521.0,90513.0,0.01104813]
[1768079851244,0.02212,90521.0,90512.0,0.01100331]
[1768079851425,0.02212,90521.0,90513.0,0.01104813]
[1768079851976,0.02212,90521.0,90512.0,0.01100331]
[1768079852214,0.02212,90521.0,90513.0,0.01104813]
[1768079852557,0.02212,90521.0,90512.0,0.01100331]
[1768079855727,0.02212,90521.0,90511.0,0.01104838]
[1768079859503,0.02212,90521.0,90511.0,0.01100344]
[1768079862524,0.02212,90521.0,90512.0,0.01104825]
[1768079862711,0.02212,90521.0,90511.0,0.01100344]
[1768079863482,0.02212,90521.0,90512.0,0.01104825]
[1768079863710,0.02212,90521.0,90513.0,0.01104813]
[1768079863913,0.02212,90521.0,90512.0,0.01104825]
[1768079865074,0.02212,90521.0,90513.0,0.01104813]
[1768079866390,0.02212,90521.0,90514.0,0.01104801]
[1768079866779,0.02212,90521.0,90513.0,0.01104813]
[1768079867029,0.02212,90521.0,90512.0,0.01104825]
[1768079868394,0.02212,90521.0,90513.0,0.01104813]
[1768079869405,0.02212,90521.0,90512.0,0.01104825]
[1768079870423,0.02212,90521.0,90512.0,0.01100331]
[1768079872156,0.02212,90521.0,90512.0,0.01104825]
[1768079872353,0.02212,90521.0,90511.0,0.01100344]
[1768079877787,0.02212,90521.0,90512.0,0.01104825]
[1768079878537,0.02212,90521.0,90511.0,0.01100344]
[1768079878979,0.04961516,90520.0,90511.0,0.01100344]
[1768079879535,0.04961516,90520.0,90512.0,0.01104825]
[1768079881731,0.04961516,90520.0,90512.0,0.01100331]
[1768079881968,0.04961516,90520.0,90511.0,0.01100344]
[1768079882197,0.02212,90521.0,90511.0,0.01100344]
[1768079882481,0.01104862,90522.0,90513.0,0.05841959]
[1768079882740,0.03316862,90522.0,90516.0,0.04737146]
[1768079883204,0.03316862,90522.0,90516.0,0.05841923]
[1768079884353,0.01104862,90522.0,90516.0,0.05841923]
[1768079884699,0.01104862,90522.0,90518.0,0.04937796]
[1768079887113,0.01104862,90522.0,90515.0,0.01104789]
[1768079887741,0.01104862,90522.0,90516.0,0.01104777]
[1768079888934,0.01104862,90522.0,90517.0,0.01104764]
[1768079889147,0.02212,90524.0,90516.0,0.01104777]
[1768079889369,0.01104789,90524.0,90517.0,0.01104764]
[1768079889571,0.03316789,90524.0,90517.0,0.01104764]
[1768079890414,0.03316789,90524.0,90516.0,0.01104777]
[1768079890623,0.03316789,90524.0,90517.0,0.01104764]
[1768079890783,0.03316789,90524.0,90516.0,0.01104777]
[1768079890979,0.01104789,90524.0,90516.0,0.01104777]
[1768079891207,0.03316789,90524.0,90516.0,0.01104777]
[1768079891823,0.03316789,90524.0,90517.0,0.01104764]
[1768079891994,0.01104789,90524.0,90517.0,0.01104764]
[1768079892201,0.02212,90523.0,90516.0,0.01104777]
[1768079892423,0.01104789,90524.0,90517.0,0.01104764]
[1768079892666,0.02212,90523.0,90517.0,0.01104764]
[1768079895682,0.02212,90523.0,90516.0,0.01104777]
[1768079896471,0.02212,90523.0,90517.0,0.01104764]
[1768079896872,0.02212,90523.0,90515.0,0.01104789]
[1768079897074,0.02212,90523.0,90516.0,0.01104777]
[1768079897315,0.02212,90523.0,90516.0,0.01100283]
[1768079898731,0.02212,90523.0,90515.0,0.01104789]
[1768079898891,0.02212,90523.0,90516.0,0.01104777]
[1768079899092,0.02212,90523.0,90517.0,0.01104764]
[1768079900584,0.02212,90523.0,90514.0,0.06042597]
[1768079901039,0.02212,90523.0,90514.0,0.04937796]
[1768079902816,0.02212,90523.0,90513.0,0.01104813]
[1768079903399,0.03316838,90523.0,90512.0,0.01104825]
[1768079905191,0.03316838,90523.0,90511.0,0.06042634]
[1768079905413,0.03316838,90523.0,90513.0,0.01104813]
[1768079906042,0.03316838,90523.0,90512.0,0.01104825]
[1768079906256,0.03316838,90523.0,90513.0,0.01104813]
[1768079908379,0.03316838,90523.0,90514.0,0.01104801]
[1768079908821,0.03316838,90523.0,90513.0,0.01104813]
[1768079909035,0.03316838,90523.0,90514.0,0.01104801]
[1768079909253,0.03316838,90523.0,90513.0,0.01104813]
[1768079910697,0.03316838,90523.0,90512.0,0.01104825]
[1768079910874,0.03316838,90523.0,90513.0,0.01104813]
[1768079911198,0.03316838,90523.0,90512.0,0.01104825]
[1768079913269,0.04611473,90522.0,90512.0,0.01104825]
[1768079913679,0.04611473,90522.0,90510.0,0.0110485]
[1768079914088,0.04611473,90522.0,90511.0,0.01104838]
[1768079914593,0.04611473,90522.0,90512.0,0.01104825]
[1768079916240,0.04611473,90522.0,90513.0,0.01104813]
[1768079916583,0.04611473,90522.0,90512.0,0.01104825]
[1768079917340,0.04611473,90522.0,90511.0,0.01104838]
[1768079917836,0.04611473,90522.0,90512.0,0.01104825]
[1768079917983,0.04611473,90522.0,90511.0,0.01104838]
[1768079918882,0.04611473,90522.0,90512.0,0.01104825]
[1768079919669,0.03316838,90523.0,90512.0,0.01104825]
[1768079920687,0.03316838,90523.0,90511.0,0.01104838]
[1768079921113,0.03316838,90523.0,90512.0,0.01104825]
[1768079921614,0.03316838,90523.0,90513.0,0.01104813]
[1768079921840,0.03316838,90523.0,90512.0,0.01104825]
[1768079922337,0.03316838,90523.0,90513.0,0.01104813]
[1768079924382,0.03316838,90523.0,90512.0,0.01104825]
[1768079924536,0.03316838,90523.0,90513.0,0.01104813]
[1768079925084,0.03316838,90523.0,90512.0,0.01104825]
[1768079925892,0.08265081,90523.0,90512.0,0.01104825]
[1768079926207,0.03316838,90523.0,90512.0,0.01104825]
[1768079928929,0.03316838,90523.0,90511.0,0.01104838]
[1768079929554,0.03316838,90523.0,90512.0,0.01104825]
[1768079929893,0.03316838,90523.0,90511.0,0.01104838]
[1768079930482,0.03316838,90523.0,90510.0,0.06046661]
[1768079930826,0.03316838,90523.0,90512.0,0.01104825]
[1768079931016,0.03316838,90523.0,90511.0,0.01104838]
[1768079931584,0.03316838,90523.0,90512.0,0.01104825]
[1768079932290,0.03316838,90523.0,90514.0,0.01104801]
[1768079932690,0.03316838,90523.0,90515.0,0.01104789]
[1768079932994,0.03316838,90523.0,90512.0,0.01104825]
[1768079933291,0.03316838,90523.0,90513.0,0.01100308]
[1768079933490,0.03316838,90523.0,90514.0,0.01104801]
[1768079933894,0.03316838,90523.0,90513.0,0.01100308]
[1768079934074,0.03316838,90523.0,90514.0,0.01104801]
[1768079934897,0.03316838,90523.0,90512.0,0.01104825]
[1768079935496,0.03316838,90523.0,90513.0,0.01104813]
[1768079937032,0.04993898,90522.0,90513.0,0.01104813]
[1768079937195,0.04993898,90522.0,90514.0,0.01104801]
[1768079937710,0.03316838,90523.0,90514.0,0.01104801]
[1768079938097,0.03316838,90523.0,90513.0,0.01104813]
[1768079938345,0.03316838,90523.0,90514.0,0.01104801]
[1768079939588,0.03316838,90523.0,90513.0,0.01104813]
[1768079939785,0.03316838,90523.0,90514.0,0.01104801]
[1768079940657,0.03316838,90523.0,90512.0,0.01104825]
[1768079940870,0.03316838,90523.0,90513.0,0.01104813]
[1768079941563,0.03316838,90523.0,90512.0,0.01104825]
[1768079942226,0.03316838,90523.0,90513.0,0.01104813]
[1768079942760,0.03316838,90523.0,90514.0,0.01104801]
[1768079944236,0.03316838,90523.0,90513.0,0.01104813]
[1768079946236,0.03316838,90523.0,90514.0,0.01104801]
[1768079946654,0.03316838,90523.0,90515.0,0.01104789]
[1768079947656,0.03316838,90523.0,90516.0,0.01104777]
[1768079948071,0.03316838,90523.0,90515.0,0.01104789]
[1768079948823,0.03316838,90523.0,90515.0,0.01100285]
[1768079948997,0.03316838,90523.0,90514.0,0.01104801]
[1768079949651,0.02212,90523.0,90514.0,0.01104801]
[1768079949891,0.02212,90523.0,90515.0,0.01104789]
[1768079950128,0.03315589,90522.0,90515.0,0.01104789]
[1768079950312,0.03315589,90522.0,90516.0,0.01104777]
[1768079951107,0.03315589,90522.0,90514.0,0.01104801]
[1768079951912,0.03315589,90522.0,90513.0,0.01104813]
[1768079954001,0.03315589,90522.0,90514.0,0.01104801]
[1768079955264,0.03315589,90522.0,90514.0,0.01100297]
[1768079955466,0.03315589,90522.0,90515.0,0.01104789]
[1768079958032,0.03315589,90522.0,90516.0,0.01104777]
[1768079958813,0.05044669,90525.0,90516.0,0.01104777]
[1768079959242,0.01104813,90524.0,90517.0,0.01104764]
[1768079959631,0.01104813,90524.0,90516.0,0.01104777]
[1768079960376,0.01104813,90524.0,90517.0,0.01104764]
[1768079960676,0.01104813,90524.0,90514.0,0.01100297]
[1768079960809,0.01104813,90524.0,90515.0,0.01104789]
[1768079963608,0.01104813,90524.0,90516.0,0.01104777]
[1768079963808,0.01104813,90524.0,90515.0,0.01104789]
[1768079963966,0.01104813,90524.0,90517.0,0.01104764]
[1768079964591,0.01104813,90524.0,90516.0,0.01104777]
[1768079965120,0.01104813,90524.0,90515.0,0.01104789]
[1768079965311,0.01104813,90524.0,90516.0,0.01104777]
[1768079965872,0.01104813,90524.0,90515.0,0.01104789]
[1768079966101,0.01104813,90524.0,90516.0,0.01104777]
[1768079966522,0.01104813,90524.0,90515.0,0.01104789]
[1768079967348,0.01104813,90524.0,90516.0,0.01104777]
[1768079967551,0.01104813,90524.0,90515.0,0.01104789]
[1768079968896,0.01104813,90524.0,90516.0,0.01104777]
[1768079969899,0.01104813,90524.0,90515.0,0.01104789]
[1768079970970,0.01104813,90524.0,90516.0,0.01104777]
[1768079971405,0.01104813,90524.0,90514.0,0.01100297]
[1768079971515,0.01104813,90524.0,90515.0,0.01104789]
[1768079972663,0.06014546,90524.0,90515.0,0.01104789]
[1768079972819,0.06014546,90524.0,90514.0,0.01100297]
[1768079973020,0.00050771,90525.0,90515.0,0.01104789]
[1768079973273,0.03315589,90523.0,90514.0,0.01100297]
[1768079973469,0.03315589,90523.0,90515.0,0.01104789]
[1768079975443,0.08142715,90523.0,90515.0,0.01104789]
[1768079975649,0.04827126,90522.0,90515.0,0.01104789]
[1768079975856,0.04827126,90522.0,90515.0,0.01097967]
[1768079977355,0.04827126,90522.0,90513.0,0.01104813]
[1768079977541,0.04827126,90522.0,90514.0,0.01104801]
[1768079977744,0.04827126,90522.0,90513.0,0.01104813]
[1768079978580,0.04827126,90522.0,90514.0,0.01104801]
[1768079978791,0.04827126,90522.0,90513.0,0.01104813]
[1768079980308,0.04827126,90522.0,90514.0,0.01104801]
[1768079982036,0.03315589,90523.0,90514.0,0.01104801]
[1768079982355,0.00050771,90525.0,90513.0,0.01104813]
[1768079982356,0.03315589,90524.0,90513.0,0.01104813]
[1768079982557,0.04827126,90523.0,90514.0,0.01104801]
[1768079986763,0.04827126,90523.0,90513.0,0.01104813]
[1768079987385,0.04827126,90523.0,90514.0,0.01104801]
[1768079989163,0.04827126,90523.0,90515.0,0.01104789]
[1768079989547,0.03315589,90524.0,90515.0,0.01104789]
[1768079991304,0.03315589,90524.0,90516.0,0.01104777]
[1768079992383,0.03315589,90524.0,90515.0,0.01104789]
[1768079993549,0.03315589,90524.0,90516.0,0.01104777]
[1768079995927,0.03315589,90524.0,90515.0,0.01104789]
[1768079996349,0.03315589,90524.0,90516.0,0.01104777]
[1768079997853,0.05527589,90524.0,90514.0,0.01104801]
[1768079997995,0.05527589,90524.0,90515.0,0.01104789]
[1768079998841,0.05527589,90524.0,90514.0,0.01104801]
[1768079999875,0.05527589,90524.0,90513.0,0.01104813]
[1768080000081,0.05527589,90524.0,90514.0,0.01104801]
[1768080000596,0.05527589,90524.0,90515.0,0.01104789]
[1768080000783,0.05527589,90524.0,90514.0,0.01104801]
[1768080000986,0.05527589,90524.0,90513.0,0.01104813]
[1768080001387,0.05527589,90524.0,90514.0,0.01104801]
[1768080001812,0.10110154,90524.0,90513.0,0.01104813]
[1768080002130,0.10110154,90524.0,90514.0,0.01104801]
[1768080004377,0.10110154,90524.0,90515.0,0.01104789]
[1768080004787,0.06794565,90524.0,90515.0,0.01104789]
[1768080005002,0.01104813,90523.0,90515.0,0.01104789]
[1768080006996,0.01104813,90523.0,90514.0,0.01104801]
[1768080008359,0.01104813,90523.0,90515.0,0.01104789]
[1768080010332,0.02212,90524.0,90515.0,0.01104789]
[1768080012239,0.02212,90524.0,90514.0,0.01104801]
[1768080012598,0.0671437,90524.0,90514.0,0.01104801]
[1768080013400,0.0671437,90524.0,90515.0,0.01104789]
[1768080013871,0.0671437,90524.0,90516.0,0.01104777]
[1768080014129,0.07819183,90524.0,90515.0,0.01104789]
[1768080014548,0.07819183,90524.0,90516.0,0.01104777]
[1768080015568,0.07819183,90524.0,90517.0,0.01104764]
[1768080015743,0.07819183,90524.0,90516.0,0.01104777]
[1768080016004,0.07819183,90524.0,90517.0,0.01104764]
[1768080016199,0.07819183,90524.0,90515.0,0.01104789]
[1768080016537,0.07819183,90524.0,90514.0,0.01104801]
[1768080017389,0.03316813,90524.0,90514.0,0.01104801]
[1768080017980,0.03316813,90524.0,90515.0,0.01104789]
[1768080018171,0.03316813,90524.0,90514.0,0.01104801]
[1768080018685,0.03316813,90524.0,90515.0,0.01104789]
[1768080018906,0.03316813,90524.0,90514.0,0.01104801]
[1768080019109,0.03316813,90524.0,90513.0,0.01104813]
[1768080019305,0.03316813,90524.0,90514.0,0.05524002]
[1768080019511,0.03316813,90524.0,90517.0,0.01104764]
[1768080019802,0.03316813,90524.0,90516.0,0.01104777]
[1768080020209,0.03316813,90524.0,90515.0,0.01104789]
[1768080020495,0.03316813,90524.0,90516.0,0.01104777]
[1768080024963,0.03316813,90524.0,90515.0,0.01104789]
[1768080025174,0.03316813,90524.0,90516.0,0.01104777]
[1768080026146,0.03316813,90524.0,90515.0,0.01104789]
[1768080026855,0.03316813,90524.0,90516.0,0.01104777]
[1768080027247,0.03316813,90524.0,90515.0,0.01104789]
[1768080028551,0.03316813,90524.0,90513.0,0.01104813]
[1768080028765,0.03316813,90524.0,90514.0,0.01104801]
[1768080028892,0.03316813,90524.0,90515.0,0.01104789]
[1768080029125,0.03316813,90524.0,90514.0,0.01104801]
[1768080029344,0.03316813,90524.0,90515.0,0.01104789]
[1768080030374,0.03316813,90524.0,90514.0,0.01104801]
[1768080030578,0.03316813,90524.0,90515.0,0.01104789]
[1768080031172,0.03316813,90524.0,90514.0,0.01104801]
[1768080031423,0.03316813,90524.0,90515.0,0.01104789]
[1768080032215,0.03316813,90524.0,90514.0,0.01104801]
[1768080032429,0.03316813,90524.0,90515.0,0.01104789]
[1768080033141,0.03316813,90524.0,90514.0,0.01104801]
[1768080033342,0.01104813,90524.0,90514.0,0.01104801]
[1768080033879,0.01104813,90524.0,90515.0,0.01104789]
[1768080034092,0.01104813,90524.0,90514.0,0.01104801]
[1768080034302,0.01104813,90524.0,90515.0,0.01104789]
[1768080038521,0.01104813,90524.0,90514.0,0.01104801]
[1768080038872,0.01104813,90524.0,90515.0,0.01104789]
[1768080039072,0.01104813,90524.0,90514.0,0.01104801]
[1768080039281,0.01104813,90524.0,90515.0,0.01104789]
[1768080039941,0.00050771,90525.0,90517.0,0.01104764]
[1768080040309,0.00050771,90525.0,90518.0,0.01104752]
[1768080040523,0.00050771,90525.0,90519.0,0.0110474]
[1768080040722,0.00050771,90525.0,90518.0,0.01104752]
[1768080041138,0.00050771,90525.0,90517.0,0.01104764]
[1768080041480,0.00050771,90525.0,90518.0,0.01104752]
[1768080043111,0.00050771,90525.0,90516.0,0.01104777]
[1768080043429,0.00050771,90525.0,90517.0,0.01104764]
[1768080043804,0.00050771,90525.0,90518.0,0.01100248]
[1768080043976,0.00050771,90525.0,90517.0,0.01104764]
[1768080044184,0.00050771,90525.0,90518.0,0.01104752]
[1768080044393,0.00050771,90525.0,90517.0,0.01104764]
[1768080048780,0.00050771,90525.0,90518.0,0.01104752]
[1768080049021,0.00050771,90525.0,90517.0,0.01104764]
[1768080049570,0.00050771,90525.0,90518.0,0.01104752]
[1768080050655,0.00050771,90525.0,90517.0,0.01104764]
[1768080052659,0.00050771,90525.0,90516.0,0.01104777]
[1768080052823,0.00050771,90525.0,90517.0,0.01104764]
[1768080053926,0.00050771,90525.0,90518.0,0.01104752]
[1768080054241,0.00050771,90525.0,90519.0,0.0110474]
[1768080055951,0.00050771,90525.0,90518.0,0.01104752]
[1768080056171,0.00050771,90525.0,90519.0,0.0110474]
[1768080056391,0.00050771,90525.0,90518.0,0.01104752]
[1768080057098,0.00050771,90525.0,90519.0,0.0110474]
[1768080057302,0.00050771,90525.0,90517.0,0.01104764]
[1768080057416,0.00050771,90525.0,90519.0,0.0110474]
[1768080057823,0.00050771,90525.0,90518.0,0.01104752]
[1768080058286,0.00050771,90525.0,90519.0,0.0110474]
[1768080059193,0.00050771,90525.0,90519.0,0.0210474]
[1768080059917,0.00050771,90525.0,90520.0,0.01104728]
[1768080060246,0.00050771,90525.0,90519.0,0.0210474]
[1768080060951,0.00050771,90525.0,90520.0,0.01104728]
[1768080061345,0.00050771,90525.0,90519.0,0.01]
[1768080062219,0.00050771,90525.0,90521.0,0.01104716]
[1768080062404,0.00050771,90525.0,90522.0,0.01104703]
[1768080062737,0.00050771,90525.0,90521.0,0.01104716]
[1768080062984,0.00050771,90525.0,90520.0,0.01104728]
[1768080063406,0.00050771,90525.0,90519.0,0.0210474]
[1768080064414,0.00050771,90525.0,90520.0,0.01104728]
[1768080064608,0.00050771,90525.0,90521.0,0.01104716]
[1768080064833,0.00050771,90525.0,90520.0,0.01104728]
[1768080065455,0.04935701,90524.0,90520.0,0.01104728]
[1768080066380,0.04935701,90524.0,90521.0,0.01104716]
[1768080066954,0.04935701,90524.0,90520.0,0.01104728]
[1768080068836,0.04935701,90524.0,90521.0,0.01104716]
[1768080069838,0.04935701,90524.0,90520.0,0.01104728]
[1768080070675,1e-08,90525.0,90520.0,0.05635496]
[1768080070912,0.02212,90529.0,90525.0,0.01104667]
[1768080071115,0.02212,90529.0,90526.0,0.06621105]
[1768080071352,5.446e-05,90532.0,90527.0,0.01104642]
[1768080071534,0.02217446,90532.0,90528.0,0.0110463]
[1768080073006,0.02217446,90532.0,90527.0,0.01104642]
[1768080073355,5.446e-05,90532.0,90529.0,0.01104618]
[1768080073739,5.446e-05,90532.0,90528.0,0.0110463]
[1768080073943,5.446e-05,90532.0,90529.0,0.01104618]
[1768080074186,5.446e-05,90532.0,90528.0,0.0110463]
[1768080076484,5.446e-05,90532.0,90527.0,0.01104642]
[1768080076892,5.446e-05,90532.0,90528.0,0.01100137]
[1768080078998,5.446e-05,90532.0,90528.0,0.0110463]
[1768080079429,5.446e-05,90532.0,90527.0,0.01104642]
[1768080079634,5.446e-05,90532.0,90527.0,0.0109782]
[1768080079964,5.446e-05,90532.0,90526.0,0.01104655]
[1768080080386,5.446e-05,90532.0,90527.0,0.01104642]
[1768080081001,5.446e-05,90532.0,90528.0,0.0110463]
[1768080081564,5.446e-05,90532.0,90526.0,0.06627917]
[1768080081565,5.446e-05,90532.0,90525.0,0.01104667]
[1768080081803,0.000999,90528.0,90525.0,0.06627993]
[1768080082007,5.446e-05,90532.0,90526.0,0.01104655]
[1768080082217,5.446e-05,90532.0,90527.0,0.01104642]
[1768080082627,5.446e-05,90532.0,90526.0,0.01104655]
[1768080083874,5.446e-05,90532.0,90527.0,0.01104642]
[1768080084337,5.446e-05,90532.0,90526.0,0.00954655]
[1768080085269,5.446e-05,90532.0,90527.0,0.01104642]
[1768080085407,5.446e-05,90532.0,90526.0,0.00954655]
[1768080085828,5.446e-05,90532.0,90526.0,0.01954655]
[1768080087983,5.446e-05,90532.0,90526.0,0.01947833]
[1768080088407,5.446e-05,90532.0,90526.0,0.01]
[1768080088644,5.446e-05,90532.0,90526.0,0.02104655]